Cogmind - Beta 16 @@@ ROGUE MODE // 2026.01.24 @ 16:38:59 Player: Assis Result: Destroyed by C-17 Slicer with Blade Saw Performance ------------- Evolutions (3) 1500 Regions Visited (5) 1000 Robots Destroyed (65) 325 Value Destroyed (1821) 1821 Prototype IDs (6) 120 Alien Tech Used (0) 0 Bonus (153) 153 TOTAL SCORE: 4919 Bonus ------- Follower Combat Kills 153 Cogmind --------- Core Integrity 0/700 Matter 288/300 Energy 13/100 System Corruption 0% Temperature Cool (0) Movement Core (50) Location -7/Factory Parts ------- > --- POWER (1) -------- (None) > --- PROPULSION (3) --- (None) > --- UTILITY (7) ------ Advanced Terrain Scan Processor Hacking Suite > --- WEAPON (2) ------- (None) > --- INVENTORY (5) ---- Light Ion Engine Advanced Terrain Scan Processor Peak State ------------ > --- POWER ------------ Light Nuclear Core > --- PROPULSION ------- Improved Flight Unit Improved Flight Unit > --- UTILITY ---------- Improved Heat Sink Terrain Scan Processor Targeting Computer Reaction Control System Hacking Suite Hacking Suite > --- WEAPON ----------- Particle Gun Particle Gun > --- INVENTORY -------- Light Ion Engine Terrain Scan Processor Grenade Launcher [Rating: 28] Favorites ----------- Power Improved Ion Engine Engine Improved Ion Engine Power Core Light Nuclear Core Propulsion Light Treads Treads Light Treads Leg Aluminum Leg Flight Unit Improved Flight Unit Utility Small Storage Unit Device Sensor Array Storage Small Storage Unit Processor Terrain Scan Processor Hackware Hacking Suite Protection Light Armor Plating Weapon Small Laser Energy Gun Small Laser Energy Cannon Ion Burst Cannon Ballistic Gun Assault Rifle Launcher Grenade Launcher Build | -11 -10 -9 -9 -8 -7 ------- Run | Yrd Mat Mat Sto Mat Fac Slots Evolved 6 | . . 2 . 2 2 Power . | . . . . . . Propulsion 1 | . . . . . 1 Utility 5 | . . 2 . 2 1 Weapon . | . . . . . . Parts Attached 68 | 8 2 6 27 23 2 Power 10 | 1 . 1 4 4 . Engine 8 | 1 . 1 4 2 . Core 2 | . . . . 2 . Reactor . | . . . . . . Propulsion 17 | 2 . 2 9 4 . Treads 12 | . . 2 8 2 . Leg 3 | 2 . . 1 . . Wheel . | . . . . . . Hover . | . . . . . . Flight 2 | . . . . 2 . Utility 20 | 2 1 3 5 7 2 Device 9 | . 1 2 2 3 1 Storage 2 | 2 . . . . . Processor 5 | . . 1 1 2 1 Hackware 2 | . . . . 2 . Protection 2 | . . . 2 . . Artifact . | . . . . . . Weapon 21 | 3 1 . 9 8 . Energy Gun 14 | 2 1 . 7 4 . Energy Cannon 1 | . . . 1 . . Ballistic Gun 5 | 1 . . 1 3 . Ballistic Cannon . | . . . . . . Launcher 1 | . . . . 1 . Special Weapon . | . . . . . . Impact Weapon . | . . . . . . Slashing Weapon . | . . . . . . Piercing Weapon . | . . . . . . Special Melee Weapon . | . . . . . . Unidentified Prototypes 4 | . . . 3 1 . Corrupted Parts 1 | . . . 1 . . System Corruption 1 | . . . 1 . . Parts Lost 31 | . . . 7 14 10 Power 5 | . . . 1 3 1 Propulsion 5 | . . . 1 2 2 Utility 12 | . . . 4 5 3 Weapon 9 | . . . 1 4 4 Highest Loss Streak 9 | . . . 5 6 9 To Critical Strikes 1 | . . . . 1 . Average Backups 6 | . 6 6 7 5 3 Power 1 | . 1 1 1 1 1 Propulsion . | . . . . . . Utility 2 | . 3 3 4 1 1 Weapon 1 | . 2 2 2 1 1 Tool/Special . | . . . . . . Unused Backups 5 | . 1 . 1 . 3 Power 2 | . . . 1 . 1 Propulsion . | . . . . . . Utility 3 | . 1 . . . 2 Weapon . | . . . . . . Tool/Special . | . . . . . . Average Slot Usage (%) 88 | . 88 83 97 82 53 Engine 8 | . 13 11 10 4 . Treads 12 | . . 6 21 9 . Leg 3 | . 21 . . . . Flight 2 | . . . . 6 9 Device 11 | . 12 22 13 7 1 Storage 9 | . 14 11 11 5 . Processor 12 | . . 10 14 16 17 Hackware 3 | . . . . 11 12 Protection 1 | . . . 3 . . Energy Gun 16 | . 15 22 20 13 5 Ballistic Gun 2 | . 10 . . 2 1 Peak Build Rating 28 | 7 8 12 17 28 25 Average Rating 12 | 3 6 9 13 17 17 On Entrance 10 | . 6 6 12 14 22 Avg Prop Armor Cover (%) 13 | . . . 13 . . Naked Turns . | . . . . . . Heaviest Build 24 | 12 12 17 24 20 11 Greatest Support 40 | 20 20 40 40 40 10 Greatest Overweight (x) 4 | 3 3 4 1 2 1 Average Overweight (x) . | . . 2 . . . Largest Inventory Capacity 8 | 8 8 8 8 8 5 Average Capacity 7 | 6 8 8 8 6 5 Most Carried 8 | 4 8 8 8 8 5 Average Carried 6 | . 6 6 7 5 3 Final Capacity 8 | 8 8 8 8 5 5 Final Carried 8 | 4 8 8 8 4 2 Class Distribution -------------------- 48% | Scavenger-Mutant 26% | Mutant 20% | Scavenger-Skirmisher 4% | Skirmisher Dominant Class ---------------- Mutant | -10/Materials Skirmisher | -9/Materials Scavenger-Mutant | -9/Storage Scavenger-Mutant | -8/Materials Scavenger-Mutant | -7/Factory Resources | -11 -10 -9 -9 -8 -7 ----------- Run | Yrd Mat Mat Sto Mat Fac Matter Collected 1109 | 280 47 100 385 297 . Remotely . | . . . . . . Salvage Created 2288 | 80 71 173 1148 729 87 Parts 129 | 2 10 6 62 47 2 Haulers Intercepted 2 | . . . 1 1 . Recyclers Shooed . | . . . . . . Parts Field Recycled . | . . . . . . Retrieved Matter . | . . . . . . Parts Self-Destructed . | . . . . . . Prevented . | . . . . . . Parts Restored . | . . . . . . Kills | -11 -10 -9 -9 -8 -7 ------- Run | Yrd Mat Mat Sto Mat Fac Combat Hostiles Destroyed 50 | . 1 3 23 21 2 Guns 41 | . 1 2 21 16 1 AOE 6 | . . . . 5 1 Classes Destroyed 12 | 1 4 1 5 1 . Builder 5 | . 1 . 1 3 . Hauler 2 | . . . 1 1 . Recycler 2 | 1 . . 1 . . Mechanic 2 | . . . 1 1 . Operator 2 | . 1 . . 1 . Watcher 2 | . 1 . 1 . . Swarmer 15 | . . . 4 11 . Grunt 21 | . 1 . 11 7 2 Brawler 1 | . . . 1 . . Duelist 1 | . . . 1 . . Sentry 10 | . . 3 6 1 . Hunter 2 | . . . . 2 . Best Kill Streak 14 | 1 2 2 5 14 2 Combat Bots Only 7 | . 1 2 3 7 2 Max Kills in Single Turn 2 | 1 1 1 1 2 1 Gunslinging . | . . . . . . Exploded 2 | . . . . 2 1 Melee . | . . . . . . Uniques/NPCs Destroyed . | . . . . . . Combat | -11 -10 -9 -9 -8 -7 -------- Run | Yrd Mat Mat Sto Mat Fac Hostile Shots Fired 441 | . 2 18 119 187 115 Missed 142 | . . 7 39 57 39 Hits 299 | . 2 11 80 130 76 Melee 19 | . . . 11 . 8 Projectile 280 | . 2 11 69 130 68 AOE 2 | . . . . . 2 Critical Strikes 8 | . . 1 4 1 2 Damage Taken 4014 | . 23 167 1208 1531 1085 Core 1310 | . 12 16 228 344 710 Absorbed by Shields 51 | . . . . . 51 Core Remaining (%) 67 | 100 95 . 39 37 . Volleys Fired 213 | 3 9 10 88 84 19 Largest 2 | 2 2 2 2 2 2 Hottest 121 | 80 60 90 121 112 85 Shots Fired 358 | 6 18 20 150 136 28 Gun 352 | 6 18 20 150 131 27 Cannon . | . . . . . . Launcher 6 | . . . . 5 1 Special . | . . . . . . Kinetic 63 | . 9 . 10 33 11 Thermal 286 | 3 9 20 140 98 16 Explosive 6 | . . . . 5 1 Electromagnetic 3 | 3 . . . . . Robot Hit Streak 26 | 2 7 17 26 14 16 Robot Miss Streak 4 | 1 4 1 4 3 4 Penetration Max . | . . . . . . Secondary Targets 5 | . . 1 1 3 . Max Gunslinging Chain 1 | . . 1 1 1 . Shots Hit Robots 258 | 3 10 19 110 97 19 Core Hits 115 | 1 6 5 48 47 8 Critical Kills . | . . . . . . Critical Parts Destroyed . | . . . . . . Critical Strikes 9 | . . 1 7 . 1 Burn 9 | . . 1 7 . 1 Melee Attacks . | . . . . . . Impact . | . . . . . . Slashing . | . . . . . . Piercing . | . . . . . . Sneak Attacks . | . . . . . . Combat Hostiles . | . . . . . . Follow-up Attacks . | . . . . . . Damage Inflicted 3853 | 37 124 212 1498 1590 392 Guns 3226 | 37 124 212 1496 1112 245 Cannons . | . . . . . . Explosions 608 | . . . . 466 142 Melee . | . . . . . . Ramming 19 | . . . 2 12 5 Kinetic 361 | . 69 . 88 140 64 Thermal 2850 | 22 55 212 1408 972 181 Explosive 608 | . . . . 466 142 Electromagnetic 15 | 15 . . . . . Impact . | . . . . . . Slashing . | . . . . . . Piercing . | . . . . . . Highest Corruption 12 | . . . 12 . . Average Corruption 5 | . . . 5 . . Corruption Purged . | . . . . . . Corruption Blocked . | . . . . . . Effects 20 | . . . 20 . . Message Errors 8 | . . . 8 . . Matter Fused 1 | . . . 1 . . Heat Flow Errors 2 | . . . 2 . . Energy Discharges 1 | . . . 1 . . Data Loss (minor) 3 | . . . 3 . . Data Loss (major) 2 | . . . 2 . . Misfires 1 | . . . 1 . . Alerts 1 | . . . 1 . . Weapon Failures 1 | . . . 1 . . Overload Shots . | . . . . . . Overflow Damage 10 | . . . . 10 . Projectiles . | . . . . . . Explosions 10 | . . . . 10 . Melee . | . . . . . . Knockbacks . | . . . . . . Impact . | . . . . . . Kinetic . | . . . . . . Secondary . | . . . . . . Self-Inflicted Damage 42 | . . . . 5 37 Shots 1 | . . . . . 1 Rammed 8 | . . . 1 5 2 Targets Rammed 8 | . . . 1 5 2 Kicked . | . . . . . . Crushed . | . . . . . . Highest Temperature 466 | 36 6 243 466 48 98 Average Temperature 96 | 18 6 112 127 11 33 Received Heat Transfer 999 | . 12 54 336 288 309 Effects 7 | . . . 7 . . Interference 4 | . . . 4 . . Matter Decay 2 | . . . 2 . . Short Circuit 1 | . . . 1 . . Siege Activations . | . . . . . . Martial Activations . | . . . . . . Shielding Activations . | . . . . . . Robots Disrupted . | . . . . . . Combat Hostiles . | . . . . . . Robots Corrupted . | . . . . . . Combat Hostiles . | . . . . . . Parts Fried . | . . . . . . Impact Corruptions . | . . . . . . Robots Melted 3 | . . 1 2 . . Combat Hostiles 3 | . . 1 2 . . Parts Melted 23 | . . 2 16 5 . Heat Transferred 7250 | 50 125 632 3771 2191 481 Parts Sabotaged . | . . . . . . Parts Stolen . | . . . . . . Parts Stripped . | . . . . . . Power Chain Reactions . | . . . . . . Alert | -11 -10 -9 -9 -8 -7 ------- Run | Yrd Mat Mat Sto Mat Fac Maximum Alert Level 1 | . . . 1 1 . Low Security (%) 73 | 100 100 100 52 71 100 Level 1 26 | . . . 47 28 . Level 2 . | . . . . . . Level 3 . | . . . . . . Level 4 . | . . . . . . Level 5 . | . . . . . . High Security . | . . . . . . Max Security . | . . . . . . Peak Influence 341 | 5 30 70 307 341 141 Initial 141 | . . . 18 111 141 Average 110 | . 2 19 160 177 70 Influence Increases 1627 | 5 47 100 782 618 75 Destroy 0b10 Robot/C 1100 | . 20 60 560 420 40 Destroy 0b10 Robot/NC 75 | 5 15 . 25 30 . Destroy Leader 248 | . 12 30 124 82 . Allied During Kill 17 | . . . 17 . . Successful Hack 19 | . . 10 9 . . Disable Machine 60 | . . . 15 45 . Destroy Structure 18 | . . . 2 11 5 Lose Combat Pursuer 90 | . . . 30 30 30 Influence Decreases 1627 | 5 47 54 564 571 386 Entered New Map 351 | . . . 28 153 170 Time Decay 930 | 5 47 54 426 278 120 Lost Part 306 | . . . 70 140 96 Lost Ally 40 | . . . 40 . . Squads Dispatched 13 | . 1 1 3 6 2 Investigation 1 | . . . . 1 . Extermination . | . . . . . . Reinforcement 8 | . 1 1 1 3 2 Assault 2 | . . . 2 . . Garrison 2 | . . . . 2 . Intercept . | . . . . . . Searches Triggered . | . . . . . . Construction Impeded 1 | . . . . 1 . Haulers Reinforced . | . . . . . . Active Scanning Responses . | . . . . . . Cargo Convoy Interrupts . | . . . . . . Stealth | -11 -10 -9 -9 -8 -7 --------- Run | Yrd Mat Mat Sto Mat Fac Distress Signals 10 | . . 2 2 6 . Communications Jammed . | . . . . . . Distress Signals . | . . . . . . Times Spotted 106 | . 3 6 40 43 14 Peak Tracking Total 11 | . 1 5 6 11 6 Tactical Retreats 5 | . . . 2 1 2 ECM-based Alert Blocks 5 | . . . . . 5 Traps | -11 -10 -9 -9 -8 -7 ------- Run | Yrd Mat Mat Sto Mat Fac Traps Triggered 8 | . 3 . 2 1 2 Indirectly . | . . . . . . Trap Hack Attempts . | . . . . . . Triggered . | . . . . . . Disarmed . | . . . . . . Reprogrammed . | . . . . . . Reused . | . . . . . . Traps Extracted . | . . . . . . Installed . | . . . . . . Triggered . | . . . . . . Machines | -11 -10 -9 -9 -8 -7 ---------- Run | Yrd Mat Mat Sto Mat Fac Machines Disabled 4 | . . . 1 3 . Max in Single Turn 2 | . . . 1 2 . Machines Repaired . | . . . . . . Machines Dismantled . | . . . . . . Machines Sabotaged . | . . . . . . Overloaded Fab Kills . | . . . . . . Hacking | -11 -10 -9 -9 -8 -7 --------- Run | Yrd Mat Mat Sto Mat Fac Machines Accessed 10 | . 1 2 7 . . Terminals 8 | . 1 1 6 . . Fabricators . | . . . . . . Repair Stations . | . . . . . . Recycling Units 1 | . . . 1 . . Scanalyzers 1 | . . 1 . . . Garrison Access . | . . . . . . Total Hacks 23 | . 1 12 10 . . Successful 15 | . . 9 6 . . Failed 8 | . 1 3 4 . . Catastrophic 1 | . . . 1 . . Database Lockouts . | . . . . . . Manual 6 | . . 1 5 . . Terminals 15 | . 1 5 9 . . Fabricators . | . . . . . . Repair Stations . | . . . . . . Recycling Units 1 | . . . 1 . . Scanalyzers 7 | . . 7 . . . Garrison Access . | . . . . . . Terminal Hacks 9 | . . 4 5 . . Part Schematic 1 | . . . 1 . . Prototype ID Bank 1 | . . 1 . . . Open Door 2 | . . . 2 . . Emergency Access Points 1 | . . 1 . . . Terminal Index 1 | . . 1 . . . Locate Traps 1 | . . . 1 . . Dispatch Records 1 | . . . 1 . . Hauler Manifests 1 | . . 1 . . . Fabricator Hacks . | . . . . . . Repair Station Hacks . | . . . . . . Recycling Unit Hacks 1 | . . . 1 . . Report Inventory 1 | . . . 1 . . Scanalyzer 5 | . . 5 . . . Insert Component 1 | . . 1 . . . Analyze 1 | . . 1 . . . Retrieve Study 3 | . . 3 . . . Garrison Access Hacks . | . . . . . . Unauthorized Hacks . | . . . . . . Terminals . | . . . . . . Fabricators . | . . . . . . Repair Stations . | . . . . . . Recycling Units . | . . . . . . Scanalyzers . | . . . . . . Garrison Access . | . . . . . . Data Cores Recovered . | . . . . . . Used . | . . . . . . Hacking Detections 4 | . 1 1 2 . . Full Trace Events . | . . . . . . Feedback Events . | . . . . . . Feedback Blocked . | . . . . . . Robot Schematics Acquired . | . . . . . . Robots Built . | . . . . . . Authchips . | . . . . . . Time . | . . . . . . Total Robot Build Rating . | . . . . . . Part Schematics Acquired 2 | . . 1 1 . . Parts Built . | . . . . . . Authchips . | . . . . . . Time . | . . . . . . Total Part Build Rating . | . . . . . . Part Studies Acquired 3 | . . 3 . . . Parts Repaired . | . . . . . . Time . | . . . . . . Parts Recycled . | . . . . . . Recycled Matter . | . . . . . . Retrieved Matter . | . . . . . . Retrieved Components . | . . . . . . Parts Scanalyzed 1 | . . 1 . . . Part Schematics Acquired 1 | . . 1 . . . Parts Damaged . | . . . . . . Bothacking | -11 -10 -9 -9 -8 -7 ------------ Run | Yrd Mat Mat Sto Mat Fac Used RIF Installer . | . . . . . . Robots Hacked . | . . . . . . Non-combat . | . . . . . . Combat . | . . . . . . Robot Hacks Applied . | . . . . . . Relay Couplers Released . | . . . . . . Fabnet Peak Effective % . | . . . . . . Robots Rewired . | . . . . . . Allies Hacked . | . . . . . . Hacks Repelled . | . . . . . . Allies | -11 -10 -9 -9 -8 -7 -------- Run | Yrd Mat Mat Sto Mat Fac Total Allies 2 | . . . 2 . . Largest Group 2 | . . . 2 . . Highest-Rated Group 62 | . . . 62 . . Highest-Rated Ally 31 | . . . 31 . . Total Orders . | . . . . . . Ally Attacks 32 | . . . 32 . . Total Damage 480 | . . . 480 . . Kills 5 | . . . 5 . . Allies Corrupted . | . . . . . . Allies Melted . | . . . . . . Intel | -11 -10 -9 -9 -8 -7 ------- Run | Yrd Mat Mat Sto Mat Fac Active Infowar (turns) 1752 | . 402 217 1096 . 37 Optics 466 | . . . 466 . . Sensors 1553 | . 402 217 934 . . Terrain 839 | . . 217 622 . . ECM 37 | . . . . . 37 Robot Analysis Total . | . . . . . . Derelict Logs Recovered . | . . . . . . Drone Launches . | . . . . . . Drone Recoveries . | . . . . . . Exploration | -11 -10 -9 -9 -8 -7 ------------- Run | Yrd Mat Mat Sto Mat Fac Turns Passed 3334 | 318 459 217 1475 607 258 Spaces Moved 2160 | 383 254 82 695 307 439 Core 532 | 281 54 48 . 23 126 Treads 843 | . . 34 691 118 . Legs 306 | 102 200 . 4 . . Wheels . | . . . . . . Hover . | . . . . . . Flight 479 | . . . . 166 313 Fastest Speed 37 | 50 120 160 120 37 37 Average Speed 111 | 72 136 212 160 105 40 Slowest Speed 250 | 200 200 250 240 200 107 Overloaded Moves . | . . . . . . Propulsion Burnouts . | . . . . . . Robots Hopped 3 | . . . . 3 . Potential Cave-ins . | . . . . . . Cave-ins Triggered . | . . . . . . Exploration Rate (%) 26 | 6 32 9 64 33 13 Regions Visited 5 Branch Regions 1 Pre-discovered Areas . | . . . . . . Known Exits Taken . | . . . . . . Unknown Exits Taken 5 | 1 1 1 1 1 . Scrap Searched . | . . . . . . Spaces Dug . | . . . . . . Terrain Destroyed 18 | . . . . 14 4 Melee . | . . . . . . Projectile . | . . . . . . AOE 18 | . . . . 14 4 Terrain Rammed . | . . . . . . Walls Destroyed . | . . . . . . Machines Disabled . | . . . . . . Actions | -11 -10 -9 -9 -8 -7 --------- Run | Yrd Mat Mat Sto Mat Fac Total 2722 | 414 346 105 913 453 491 Wait 189 | 16 70 4 74 25 . Move 2149 | 382 253 81 694 300 439 Hop 3 | . . . . 3 . Pick Up 21 | 3 6 2 6 3 1 Fast Attach 34 | 7 6 2 7 10 2 Attach 15 | . . 2 4 6 3 Detach 4 | 1 . . . 2 1 Swap 33 | 2 . 2 20 9 . Drop 30 | . 2 2 19 6 1 Fire 213 | 3 9 10 88 84 19 Melee . | . . . . . . Ram 6 | . . . . 4 2 Kick . | . . . . . . Crush 2 | . . . 1 1 . Escape Stasis 23 | . . . . . 23 Rewire . | . . . . . . Trap . | . . . . . . Miscellaneous . | . . . . . . Route ------- -11/Scrapyard -10/Materials -9/Materials -9/Storage -8/Materials -7/Factory History --------- Turn | Location | Event 57 | -11/Scrapyard | Discovered new exit (range 15) 319 | -11/Scrapyard | Entered Materials 330 | -10/Materials | Build established: Mutant 653 | -10/Materials | Discovered new exit (range 14) 778 | -10/Materials | Entered another Materials area 778 | -9/Materials | Evolved 2 slots: Utility x2 921 | -9/Materials | Discovered new exit (range 9) 995 | -9/Materials | Entered Storage 1228 | -9/Storage | Build established: Scavenger-Skirmisher 1912 | -9/Storage | Build established: Scavenger-Mutant 1913 | -9/Storage | Met a pair of Derelict thieves 2091 | -9/Storage | Core integrity fell below 50% 2093 | -9/Storage | System corruption reached 10% 2129 | -9/Storage | Lost 5 parts (1p1n2u1w) 2446 | -9/Storage | Discovered new exit (range 15) 2470 | -9/Storage | Entered Materials 2470 | -8/Materials | Evolved 2 slots: Utility x2 2568 | -8/Materials | Lost 3 parts (1p1u1w) 2724 | -8/Materials | Lost 6 parts (1p2n1u2w) 2897 | -8/Materials | Garrison activated, responded to threat 2923 | -8/Materials | Core integrity fell below 50% 3008 | -8/Materials | Destroyed 7 combat bots 3066 | -8/Materials | Discovered new exit (range 12) 3077 | -8/Materials | Entered Factory 3077 | -7/Factory | Evolved 2 slots: Propulsion x1, Utility x1 3285 | -7/Factory | Lost 9 parts (1p2n2u4w) 3293 | -7/Factory | Core integrity fell below 50% 3319 | -7/Factory | Core integrity fell below 20% 3335 | -7/Factory | Destroyed by C-17 Slicer with Blade Saw Last Messages --------------- 03278_ O-16 Technician: "IFF HANDSHAKE FAILED. SECURING TERMINAL." 03280_ ALERT: Hostiles spotted, dispatching reinforcements to Terminal F003. 03284_ ALERT: Suspicious intruders detected, dispatching Cutter reinforcements to area. [Achievement: Heavy Suspicion] 03296_ U-05 Engineer builds a Wall. 03298_ Acquired ECM Suite. 03298_ U-05 Engineer builds a Wall. 03302_ Knocked back. 03304_ K-01 Serf cleans the Manufacturing Mainframe. 03309_ Knocked back. 03309_ K-01 Serf destroyed. 03311_ C-17 Slicer destroyed. 03311_ C-17 Slicer knocked back. 03311_ A-02 Transporter destroyed. 03316_ Slammed into C-17 Slicer. 03325_ Targeting Computer severed. 03334_ K-01 Serf cleans the Assembly Bed. 03335_ ECM Suite destroyed. Map ----- +----------------------------------------------------+ | ?????????????????????????????????????????????????? | | ?????????????????????????????????????????????????? | | ?????????????????????????????????????????????????? | | ?????????????????????????????????????????????????? | | ?????????????????????????????????????????????????? | | ?????????????????????????????????????????????????? | | ?????????????????????????????????????????????????? | | ?????????????????????????????????????????????????? | | ?????????????????????????????????????????????????? | | ?????????????????????????????????????????????????? | | ?????????????????????????????????????????????????? | | ?????????????????????????????????????????????????? | | ?????????????????????????????????????????????????? | | ?????????????????????????????????????????????????? | | ?????????????????????????????????????????????????? | | ?????????????????????????????????????????????????? | | ???????????????? ???????????????????????????????? | | ???????????????? ######?????????????????????????? | | ????????????????? ?????????????????????????? | | ????????????????? ######???????????????????? | | ?????????????????? ????????????????????? | | ??????????????????"""" #????????????????????? | | ??????????????????"""" #????????????????????? | | ????????????????? """" #????????????????????? | | ??????????????? """" #????????????????????? | | ?????????????# """" @ #????????????????????? | | ?????????????# """" c #????????????????????? | | ?????????????# #????????????????????? | | ?????????????# """" #????????????????????? | | ?????????????# """" #????????????????????? | | ??????????????? """" #????????????????????? | | ?????????????# """" c #????????????????????? | | ?????????????# """"k #????????????????????? | | ?????????????# """" #????????????????????? | | ???????????????# #????????????????????? | | ???????????????# """" #????????????????????? | | ???????????????+ """" #????????????????????? | | ???????????????# """" #????????????????????? | | ????????????????? """" #????????????????????? | | ????????????????? """" #????????????????????? | | ????????????????? """" k##########???????????? | | ???????????????# ????? | | ???????????????# ######???????????? | | ???????????????#### ###???????????? | | ??????????????????# +???????????? | | ??????????????????# #+###### ###???????????? | | ???????????????? ???????## ##?????????????? | | ??????????????? ????????# #### #??????? | | ??????????????? ????????# / +??????? | | ??????????????? ????????# #### #??????? | +----------------------------------------------------+ Best States ------------- Heat Dissipation 45 Energy Generation 14 Energy Capacity 265 Matter Stores 300 Matter Capacity 300 Sight Range 18 Robot Scan Range 14 Terrain Scan Range 14 Terrain Scan Density 285 ECM Strength 1 Armor Coverage 150 Evasion (%) 70 Targeting Accuracy 5 Recoil Reduction 2 Offensive Hacking 20 Item Schematics ----------------- Lgt. Armor Plating | -9/Materials | Scanalyzed Hrd. Light Armor Plating | -9/Storage | Hacked Robot Schematics ------------------ None Fabricated ------------ Nothing Repaired ---------- Nothing Studied --------- Med. Laser | -9/Materials | Hacked Sml. Laser | -9/Materials | Hacked Grenade Launcher | -9/Materials | Hacked Alien Tech Used ----------------- None Achievements -------------- A Problem For Future Me Ghost 'Em Heavy Suspicion Challenges ------------ None Game ------ Seed MeleeMachineKinecellerator Manual? 0 Play Time 01:07:12 Cumulative 21.5 hours Start 2026.01.24 @ 14:01:04 End 2026.01.24 @ 16:38:59 Sessions 7 Manual Loads 0 Difficulty Rogue Special Mode None Game No. 42 Rogue 42 Adventurer 0 Explorer 0 Win Type - Total 0 Types 0/0/0/0/0/0/0/0/0/0 Lore% 11 Gallery% 21 Achievement% 15 Wizard Run 0 Options --------- Layout 0 ASCII 0 Keyboard 1 Movement Arrows Keybinds 0 Fullscreen 1 Font 18/Smallcaps Map View 38x25 Zoom Use 97% Tactical HUD 1 Map Filters NONE Filters NONE Steam 1 RUN: d3b48be3-b8c0-499c-8a11-b0355b740fe4